[Event "GER-ch Youth U16w 2019"]
[Site "Willingen"]
[Date "2019.06.13"]
[Round "7.2"]
[White "Muedder, Melanie"]
[Black "Fock, Amina"]
[Result "1/2-1/2"]
[ECO "B90"]
[WhiteElo "1912"]
[BlackElo "1723"]
[Annotator "NA RC"]
[PlyCount "107"]
[EventDate "2019.06.07"]
[EventType "swiss"]
[EventRounds "9"]
[EventCountry "GER"]
[SourceTitle "playchess.com"]
[Source "ChessBase"]
[SourceQuality "1"]
[TimeControl "40/5400+30:1800+30"]

1. e4 {[%emt 0:00:00]} c5 {[%emt 0:00:00]} 2. Nf3 {[%emt 0:00:00]} d6 {[%emt 0:00:00]} 3. d4 {[%emt 0:00:00]} cxd4 {[%emt 0:00:00]} 4. Nxd4 {[%emt 0:00:00]} Nf6 {[%emt 0:00:00]} 5. Nc3 {[%emt 0:00:11]} a6 {[%emt 0:00:00]} 6. Nb3 {[%emt 0:00:37]} b5 {[%emt 0:04:01]} 7. Nd5 {[%emt 0:08:01]} Nfd7 {[%emt 0:08:51]} 8. Bd2 {[%emt 0:07:23]} Nc6 {[%emt 0:03:41]} 9. a4 {[%emt 0:03:09]} bxa4 {[%emt 0:11:09]} 10. Rxa4 {[%emt 0:03:48]} Nb6 {[%emt 0:05:03]} 11. Nxb6 {[%emt 0:08:17]} Qxb6 {[%emt 0:00:15]} 12. Be3 {[%emt 0:05:15]} Qb7 {[%emt 0:03:15]} 13. Bc4 {[%emt 0:03:41]} e6 {[%emt 0:02:46]} 14. O-O {[%emt 0:05:20]} Bd7 {[%emt 0:05:21]} 15. Ra1 {[%emt 0:05:43]} Ne5 {[%emt 0:06:48]} 16. Be2 {[%emt 0:11:14]} Qxe4 {[%emt 0:05:36]} 17. Nd4 {[%emt 0:03:26]} Qb7 {[%emt 0:02:28]} 18. f4 {[%emt 0:06:02]} Nc6 {[%emt 0:02:25]} 19. f5 {[%emt 0:03:39]} Nxd4 {[%emt 0:04:13]} 20. Bxd4 {[%emt 0:00:50]} e5 {[%emt 0:00:53]} 21. Bc3 {[%emt 0:00:36]} Be7 {[%emt 0:03:29]} 22. Bc4 {[%emt 0:11:11]} Bc6 {[%emt 0:03:23]} 23. Qg4 {[%emt 0:03:03]} Bf6 {[%emt 0:00:56]} 24. Rfd1 {[%emt 0:00:39]} d5 {[%emt 0:00:53]} 25. Bb3 {[%emt 0:03:02]} d4 {[%emt 0:04:01]} 26. Be1 {[%emt 0:01:30]} h5 {[%emt 0:05:36]} 27. Qe2 {[%emt 0:01:34]} e4 {[%emt 0:06:21]} 28. Bc4 {[%emt 0:03:16]} Qb6 {[%emt 0:04:30]} 29. Kh1 {[%emt 0:00:42]} a5 {[%emt 0:00:35]} 30. c3 {[%emt 0:00:50]} Rd8 {[%emt 0:04:55]} 31. cxd4 {[%emt 0:00:26]} Rxd4 {[%emt 0:00:16]} 32. Rxd4 {[%emt 0:00:59]} Qxd4 {[%emt 0:00:33]} 33. Bc3 {[%emt 0:00:39]} Qd6 {[%emt 0:03:03]} 34. Bxf6 {[%emt 0:00:51]} Qxf6 {[%emt 0:00:06]} 35. Rxa5 {[%emt 0:00:29]} O-O {[%emt 0:00:56]} 36. Ra6 {[%emt 0:00:45]} Ra8 {[%emt 0:00:46]} 37. Rxa8+ {[%emt 0:00:22]} Bxa8 {[%emt 0:00:03]} 38. Qxh5 {[%emt 0:00:45]} e3 {[%emt 0:00:51]} 39. h3 {[%emt 0:00:39]} Be4 {[%emt 0:00:31]} 40. Qe2 {[%emt 0:00:24]} Qg5 {[%emt 0:00:49]} 41. b4 {[%emt 0:17:27]} Bxf5 {[%emt 0:07:04]} 42. Qf3 {[%emt 0:02:10]} Bg6 {[%emt 0:03:23]} 43. b5 {[%emt 0:01:53]} Qc5 {[%emt 0:05:29]} 44. Qc6 {[%emt 0:05:09]} Qxc6 {[%emt 0:04:38]} 45. bxc6 {[%emt 0:00:05]} Be4 {[%emt 0:00:09]} 46. c7 {[%emt 0:01:03]} Bb7 {[%emt 0:00:08]} 47. Kg1 {[%emt 0:00:43]} Kf8 {[%emt 0:00:20]} 48. Kf1 {[%emt 0:00:45]} Ke7 {[%emt 0:00:12] normal} 49. Ke2 {[%emt 0:01:41]} Kd7 {[%emt 0:00:42] normal} 50. g4 {[%emt 0:01:29] normal} f6 {[%emt 0:00:39]} 51. Kxe3 {[%emt 0:00:07]} g5 {[%emt 0:00:21] normal} 52. Kd4 {[%emt 0:01:02]} Bg2 {[%emt 0:00:43]} 53. Kc5 {[%emt 0:01:26] normal} Kxc7 {[%emt 0:00:11]} 54. Be6 {[%emt 0:00:41] normal} 1/2-1/2

[Event "GER-ch Youth U16w 2019"]
[Site "Willingen"]
[Date "2019.06.13"]
[Round "7.3"]
[White "Rothenberg, Nina"]
[Black "Berelowitsch, Dana"]
[Result "1/2-1/2"]
[ECO "B24"]
[WhiteElo "1653"]
[BlackElo "1753"]
[Annotator "NA"]
[PlyCount "94"]
[EventDate "2019.06.07"]
[EventType "swiss"]
[EventRounds "9"]
[EventCountry "GER"]
[SourceTitle "playchess.com"]
[Source "ChessBase"]
[SourceQuality "1"]
[TimeControl "40/5400+30:1800+30"]

1. e4 {[%emt 0:00:00]} c5 {[%emt 0:00:00]} 2. Nc3 {[%emt 0:00:00]} Nc6 {[%emt 0:00:00]} 3. g3 {[%emt 0:00:00]} g6 {[%emt 0:00:25]} 4. Bg2 {[%emt 0:00:00]} Bg7 {[%emt 0:00:21]} 5. d3 {[%emt 0:00:00]} e6 {[%emt 0:00:50]} 6. Be3 {[%emt 0:00:01]} d6 {[%emt 0:00:42]} 7. Qd2 {[%emt 0:00:14]} Rb8 {[%emt 0:00:46]} 8. Nge2 {[%emt 0:01:26]} Nd4 {[%emt 0:00:34]} 9. Nc1 {[%emt 0:02:20]} Ne7 {[%emt 0:00:54]} 10. O-O {[%emt 0:02:36]} O-O {[%emt 0:00:28]} 11. Nd1 {[%emt 0:01:38]} e5 {[%emt 0:13:03]} 12. c3 {[%emt 0:05:59]} Ndc6 {[%emt 0:01:54]} 13. Bh6 {[%emt 0:00:12]} Bxh6 {[%emt 0:01:16]} 14. Qxh6 {[%emt 0:03:36]} Be6 {[%emt 0:02:58]} 15. Qd2 b5 {[%emt 0:01:21]} 16. Ne2 {[%emt 0:03:29]} Qb6 {[%emt 0:05:46]} 17. Kh1 Kg7 18. f4 {[%emt 0:07:43]} f5 {[%emt 0:01:41]} 19. Ne3 {[%emt 0:04:50]} a5 {[%emt 0:10:20]} 20. fxe5 {[%emt 0:20:14]} dxe5 {[%emt 0:08:37]} 21. Nd5 {[%emt 0:06:09]} Qa7 {[%emt 0:00:30]} 22. Nxe7 {[%emt 0:00:30]} Nxe7 {[%emt 0:06:44]} 23. Qe3 {[%emt 0:02:13]} Qc7 24. d4 cxd4 {[%emt 0:02:58]} 25. cxd4 {[%emt 0:05:21]} exd4 {[%emt 0:08:37]} 26. Nxd4 {[%emt 0:02:28]} Qe5 {[%emt 0:10:18]} 27. Nxe6+ {[%emt 0:02:07]} Qxe6 {[%emt 0:00:50]} 28. Qc3+ {[%emt 0:03:34]} Kg8 {[%emt 0:10:38]} 29. exf5 Nxf5 {[%emt 0:01:42]} 30. Qxa5 {[%emt 0:09:33]} Ne3 {[%emt 0:03:26]} 31. Rxf8+ {[%emt 0:01:59]} Rxf8 {[%emt 0:01:24]} 32. Re1 {[%emt 0:05:09]} Qc4 {[%emt 0:03:49]} 33. Qc3 {[%emt 0:02:51]} Qxc3 {[%emt 0:00:35]} 34. bxc3 {[%emt 0:00:06]} Nxg2 {[%emt 0:01:15]} 35. Kxg2 {[%emt 0:00:07]} Ra8 {[%emt 0:00:52]} 36. Re2 {[%emt 0:02:48]} Ra3 {[%emt 0:00:50]} 37. Rc2 {[%emt 0:00:17]} Kf7 {[%emt 0:00:21]} 38. Kh3 {[%emt 0:00:43]} Kf6 {[%emt 0:00:49]} 39. Kg4 {[%emt 0:03:26]} h6 {[%emt 0:00:48]} 40. Kf4 {[%emt 0:01:21]} Ke6 {[%emt 0:00:35]} 41. Ke4 {[%emt 0:33:05]} Kd6 {[%emt 0:02:18]} 42. Kd4 {[%emt 0:00:00]} Ra4+ {[%emt 0:02:03]} 43. Kd3 {[%emt 0:00:00]} Ra3 {[%emt 0:00:50]} 44. Rf2 {[%emt 0:00:00]} Kd5 {[%emt 0:09:27]} 45. h4 {[%emt 0:00:00]} b4 {[%emt 0:00:59]} 46. Rc2 {[%emt 0:00:00]} bxc3 {[%emt 0:01:25]} 47. Rxc3 {[%emt 0:00:00]} Rxa2 {[%emt 0:00:15] normal Ke4+} 1/2-1/2

[Event "GER-ch Youth U16w 2019"]
[Site "Willingen"]
[Date "2019.06.13"]
[Round "7.4"]
[White "Khamenya, Vitalia"]
[Black "Ziegenfuss, Larissa"]
[Result "1/2-1/2"]
[ECO "B93"]
[WhiteElo "1877"]
[BlackElo "1771"]
[Annotator "NA"]
[PlyCount "49"]
[EventDate "2019.06.07"]
[EventType "swiss"]
[EventRounds "9"]
[EventCountry "GER"]
[SourceTitle "playchess.com"]
[Source "ChessBase"]
[SourceQuality "1"]
[TimeControl "40/5400+30:1800+30"]

1. e4 {[%emt 0:00:00]} c5 {[%emt 0:00:00]} 2. Nf3 {[%emt 0:00:00]} d6 {[%emt 0:00:00]} 3. d4 {[%emt 0:00:00]} cxd4 {[%emt 0:00:00]} 4. Nxd4 {[%emt 0:00:00]} Nf6 {[%emt 0:00:00]} 5. Nc3 {[%emt 0:01:57]} a6 {[%emt 0:00:00]} 6. f4 {[%emt 0:13:18]} e5 {[%emt 0:02:46]} 7. Nf3 {[%emt 0:00:12]} Qc7 {[%emt 0:01:03]} 8. Bd3 {[%emt 0:07:44]} Be7 {[%emt 0:03:26]} 9. O-O {[%emt 0:02:52]} O-O {[%emt 0:04:02]} 10. Kh1 {[%emt 0:01:49]} Nbd7 {[%emt 0:03:28]} 11. fxe5 {[%emt 0:19:18]} dxe5 {[%emt 0:01:50]} 12. Nh4 {[%emt 0:14:49]} Nc5 {[%emt 0:07:28]} 13. Nf5 {[%emt 0:01:00]} Bxf5 {[%emt 0:03:16]} 14. exf5 {[%emt 0:03:22]} Rad8 {[%emt 0:03:16]} 15. Qf3 {[%emt 0:00:28]} Nxd3 {[%emt 0:03:05]} 16. cxd3 {[%emt 0:00:01]} Rd7 {[%emt 0:17:48]} 17. Bg5 {[%emt 0:10:18]} Qb6 {[%emt 0:10:23]} 18. Qe2 {[%emt 0:07:40]} Qd4 {[%emt 0:03:54]} 19. Rae1 {[%emt 0:04:19]} Qxd3 {[%emt 0:08:47]} 20. Qxe5 {[%emt 0:00:13]} Bd6 {[%emt 0:03:49]} 21. Qe2 {[%emt 0:00:56]} Qxe2 {[%emt 0:02:46]} 22. Rxe2 {[%emt 0:00:01]} Be7 {[%emt 0:02:31]} 23. h3 {[%emt 0:03:20]} h6 {[%emt 0:00:35]} 24. Bf4 {[%emt 0:00:39]} Bb4 {[%emt 0:03:22]} 25. Be5 {[%emt 0:04:16] normal} 1/2-1/2

[Event "GER-ch Youth U16w 2019"]
[Site "Willingen"]
[Date "2019.06.13"]
[Round "7.5"]
[White "Basovskiy, Jana"]
[Black "Stowicek, Yara Mathilda"]
[Result "1-0"]
[ECO "B43"]
[WhiteElo "1761"]
[BlackElo "1692"]
[Annotator "NA RC"]
[PlyCount "131"]
[EventDate "2019.06.07"]
[EventType "swiss"]
[EventRounds "9"]
[EventCountry "GER"]
[SourceTitle "playchess.com"]
[Source "ChessBase"]
[SourceQuality "1"]
[TimeControl "40/5400+30:1800+30"]

1. e4 {[%emt 0:00:00]} c5 {[%emt 0:00:00]} 2. Nf3 {[%emt 0:00:00]} e6 {[%emt 0:00:00]} 3. d4 {[%emt 0:00:00]} cxd4 {[%emt 0:00:00]} 4. Nxd4 {[%emt 0:00:00]} a6 {[%emt 0:00:06]} 5. Nc3 {[%emt 0:00:00]} Qc7 {[%emt 0:00:16]} 6. Bd3 {[%emt 0:00:01]} Nf6 {[%emt 0:00:43]} 7. f4 {[%emt 0:01:17]} d6 {[%emt 0:00:39]} 8. O-O {[%emt 0:00:30]} Be7 {[%emt 0:02:03]} 9. Kh1 {[%emt 0:00:19]} Nbd7 {[%emt 0:02:33]} 10. Bd2 {[%emt 0:02:20]} b5 {[%emt 0:03:42]} 11. a3 {[%emt 0:00:56]} Bb7 {[%emt 0:01:37]} 12. Qe2 {[%emt 0:00:53]} O-O {[%emt 0:02:03]} 13. Rae1 {[%emt 0:11:41]} Nc5 {[%emt 0:03:38]} 14. Nf3 {[%emt 0:14:40]} Nxd3 {[%emt 0:06:34]} 15. cxd3 Rfd8 {[%emt 0:10:35]} 16. Rc1 {[%emt 0:03:04]} Qd7 {[%emt 0:01:10]} 17. Nd1 {[%emt 0:11:45]} Rac8 {[%emt 0:01:58]} 18. Nf2 {[%emt 0:00:09]} Rxc1 {[%emt 0:11:06]} 19. Rxc1 {[%emt 0:00:10]} Rc8 {[%emt 0:00:38]} 20. Qe1 {[%emt 0:06:13]} Ne8 {[%emt 0:10:16]} 21. Bc3 {[%emt 0:04:48]} d5 {[%emt 0:06:31]} 22. e5 {[%emt 0:05:47]} f6 {[%emt 0:18:13]} 23. d4 {[%emt 0:01:37]} Nc7 {[%emt 0:05:28]} 24. Nd3 {[%emt 0:03:02]} Na8 {[%emt 0:01:29]} 25. Ba5 {[%emt 0:00:44]} Nc7 {[%emt 0:02:26]} 26. Bb4 {[%emt 0:04:05]} Na8 {[%emt 0:04:00]} 27. Ba5 {[%emt 0:11:49]} Nc7 {[%emt 0:00:20]} 28. Nc5 {[%emt 0:00:25]} Bxc5 {[%emt 0:00:59]} 29. Rxc5 {[%emt 0:00:12]} Ne8 {[%emt 0:01:10]} 30. Qc3 {[%emt 0:01:46]} Kf7 {[%emt 0:02:08]} 31. Kg1 {[%emt 0:08:01]} Kg8 {[%emt 0:01:05]} 32. Ne1 {[%emt 0:01:48]} fxe5 {[%emt 0:01:15]} 33. fxe5 {[%emt 0:00:06]} g6 {[%emt 0:00:21]} 34. Rxc8 {[%emt 0:04:04]} Qxc8 {[%emt 0:00:18]} 35. Qxc8 {[%emt 0:00:10]} Bxc8 {[%emt 0:00:03]} 36. Nd3 {[%emt 0:00:36]} Ng7 {[%emt 0:00:24]} 37. g4 {[%emt 0:00:05]} Kf7 {[%emt 0:01:01]} 38. Kf2 {[%emt 0:00:12]} Ne8 {[%emt 0:00:29]} 39. Ke3 {[%emt 0:00:59]} Ng7 {[%emt 0:00:31]} 40. Kf4 {[%emt 0:01:42]} h6 {[%emt 0:00:15]} 41. Ke3 {[%emt 0:30:26]} Ne8 {[%emt 0:30:10]} 42. Nf4 {[%emt 0:03:07]} Ng7 {[%emt 0:01:42]} 43. Kd2 {[%emt 0:00:59]} g5 {[%emt 0:00:00]} 44. Nd3 {[%emt 0:00:00]} Ke7 {[%emt 0:00:00]} 45. Bb4+ {[%emt 0:00:00]} Kf7 {[%emt 0:00:00]} 46. Kc3 {[%emt 0:00:00]} Ne8 {[%emt 0:00:00]} 47. Ba5 {[%emt 0:00:00]} Ng7 {[%emt 0:00:00]} 48. Kb4 {[%emt 0:00:00]} h5 {[%emt 0:00:00]} 49. h3 {[%emt 0:00:00]} hxg4 {[%emt 0:00:00]} 50. hxg4 {[%emt 0:00:00]} Nf5 {[%emt 0:00:00]} 51. gxf5 {[%emt 0:00:00]} exf5 {[%emt 0:00:00]} 52. Bd8 {[%emt 0:00:00]} Kg6 {[%emt 0:00:00]} 53. Kc5 {[%emt 0:00:00]} f4 {[%emt 0:00:00]} 54. Kxd5 {[%emt 0:00:00]} Bf5 {[%emt 0:00:00]} 55. Nxf4+ {[%emt 0:00:00]} gxf4 {[%emt 0:00:00]} 56. Bh4 {[%emt 0:00:00]} Kf7 {[%emt 0:00:00]} 57. Kd6 {[%emt 0:00:00]} Bd3 {[%emt 0:00:00]} 58. d5 {[%emt 0:00:00]} Bc4 {[%emt 0:00:00]} 59. e6+ {[%emt 0:00:00]} Ke8 {[%emt 0:00:00]} 60. Ke5 {[%emt 0:00:00]} b4 {[%emt 0:04:17]} 61. axb4 {[%emt 0:00:00]} Bb5 {[%emt 0:00:09]} 62. Kxf4 {[%emt 0:00:00] normal} Ba4 {[%emt 0:00:32]} 63. Ke5 {[%emt 0:00:00]} Bb5 {[%emt 0:00:23] normal} 64. d6 {[%emt 0:00:00]} Ba4 {[%emt 0:00:21]} 65. Kd5 {[%emt 0:00:00] normal} Bb5 {[%emt 0:00:26]} 66. Ke4 {normal} 1-0

[Event "GER-ch Youth U16w 2019"]
[Site "Willingen"]
[Date "2019.06.13"]
[Round "7.6"]
[White "Rudolph, Eva"]
[Black "Bui, Ngoc Han Julia"]
[Result "0-1"]
[ECO "B53"]
[WhiteElo "1786"]
[BlackElo "1973"]
[Annotator "NA"]
[PlyCount "88"]
[EventDate "2019.06.07"]
[EventType "swiss"]
[EventRounds "9"]
[EventCountry "GER"]
[SourceTitle "playchess.com"]
[Source "ChessBase"]
[SourceQuality "1"]
[TimeControl "40/5400+30:1800+30"]

1. e4 {[%emt 0:00:00]} c5 {[%emt 0:00:00]} 2. Nf3 {[%emt 0:00:00]} d6 {[%emt 0:00:00]} 3. d4 {[%emt 0:00:00]} cxd4 {[%emt 0:00:00]} 4. Qxd4 {[%emt 0:00:00]} a6 {[%emt 0:00:07]} 5. h3 {[%emt 0:00:17]} Nc6 {[%emt 0:00:15]} 6. Qe3 {[%emt 0:00:25]} g6 {[%emt 0:06:24]} 7. c4 {[%emt 0:00:32]} Bd7 {[%emt 0:04:24]} 8. Nc3 {[%emt 0:00:55]} Bh6 {[%emt 0:01:13]} 9. Qd3 {[%emt 0:07:21]} Bg7 {[%emt 0:00:30]} 10. Be3 {[%emt 0:02:31]} Nf6 {[%emt 0:02:21]} 11. Be2 {[%emt 0:01:07]} O-O {[%emt 0:01:54]} 12. O-O {[%emt 0:00:27]} Qa5 {[%emt 0:03:22]} 13. Rac1 {[%emt 0:04:33]} Rac8 {[%emt 0:09:30]} 14. Qd2 {[%emt 0:06:58]} b5 {[%emt 0:15:56]} 15. cxb5 {[%emt 0:17:34]} axb5 {[%emt 0:00:14]} 16. Nxb5 {[%emt 0:04:34]} Nxe4 {[%emt 0:06:52]} 17. Qxa5 {[%emt 0:01:52]} Nxa5 {[%emt 0:00:06]} 18. b4 {[%emt 0:02:56]} Nc6 {[%emt 0:05:48]} 19. a3 {[%emt 0:22:02]} Ra8 {[%emt 0:12:13]} 20. Rc2 {[%emt 0:03:11]} Rfb8 {[%emt 0:07:42]} 21. Rb1 {[%emt 0:06:23]} Ne5 {[%emt 0:03:07]} 22. Na7 {[%emt 0:08:05]} Rb7 {[%emt 0:08:19]} 23. Nxe5 {[%emt 0:03:51]} Bxe5 {[%emt 0:00:05]} 24. Nc6 {[%emt 0:00:49]} Bxc6 {[%emt 0:01:47]} 25. Rxc6 {[%emt 0:00:09]} Rxa3 {[%emt 0:00:34]} 26. Ba6 {[%emt 0:01:29]} Rb8 {[%emt 0:01:33]} 27. Rbc1 {[%emt 0:02:18]} Kg7 {[%emt 0:01:21]} 28. b5 {[%emt 0:02:06]} Nc3 {[%emt 0:00:20]} 29. Kf1 {[%emt 0:00:08]} Nxb5 {[%emt 0:01:36]} 30. Rb1 {[%emt 0:00:42]} Nd4 {[%emt 0:01:28]} 31. Rxb8 {[%emt 0:00:06]} Nxc6 {[%emt 0:00:08]} 32. Rb6 {[%emt 0:00:19]} Nd4 {[%emt 0:01:12]} 33. g3 {[%emt 0:01:58]} Nc2 {[%emt 0:01:27]} 34. Bd2 {[%emt 0:00:24]} Rf3 {[%emt 0:01:56]} 35. Kg2 {[%emt 0:00:22]} Rxf2+ {[%emt 0:00:37]} 36. Kxf2 {[%emt 0:00:21]} Bd4+ {[%emt 0:00:06]} 37. Ke2 {[%emt 0:00:27]} Bxb6 {[%emt 0:00:15]} 38. Kd3 {[%emt 0:00:08]} Nd4 {[%emt 0:00:48]} 39. Bb4 {[%emt 0:00:30]} Ne6 {[%emt 0:00:49]} 40. Bc3+ {[%emt 0:00:13]} f6 {[%emt 0:01:07]} 41. Bc8 {[%emt 0:30:14]} Kf7 {[%emt 0:31:54]} 42. Ke4 {[%emt 0:00:27]} Bf2 {[%emt 0:00:00]} 43. Kd5 {[%emt 0:00:00]} Nc5 {[%emt 0:00:00]} 44. g4 {[%emt 0:00:00] normal} e6+ {[%emt 0:00:00] normal} 0-1

[Event "GER-ch Youth U16w 2019"]
[Site "Willingen"]
[Date "2019.06.13"]
[Round "7.7"]
[White "Brunner, Sophia"]
[Black "Sokolowski, Judith"]
[Result "0-1"]
[ECO "D02"]
[WhiteElo "1839"]
[BlackElo "1749"]
[Annotator "NA RC"]
[PlyCount "108"]
[EventDate "2019.06.07"]
[EventType "swiss"]
[EventRounds "9"]
[EventCountry "GER"]
[SourceTitle "playchess.com"]
[Source "ChessBase"]
[SourceQuality "1"]
[TimeControl "40/5400+30:1800+30"]

1. d4 {[%emt 0:00:00]} d5 {[%emt 0:00:00]} 2. Nf3 {[%emt 0:00:00]} c6 {[%emt 0:00:00]} 3. e3 {[%emt 0:00:56]} Bg4 {[%emt 0:00:49]} 4. c4 {[%emt 0:00:14]} e6 {[%emt 0:00:44]} 5. Nc3 {[%emt 0:00:54]} Nd7 {[%emt 0:01:17]} 6. h3 {[%emt 0:01:59]} Bh5 {[%emt 0:01:02]} 7. Be2 {[%emt 0:02:02]} Ngf6 {[%emt 0:00:52]} 8. O-O {[%emt 0:01:31]} Bd6 {[%emt 0:01:32]} 9. b3 {[%emt 0:01:03]} O-O {[%emt 0:00:56]} 10. Qc2 {[%emt 0:04:19]} Re8 {[%emt 0:06:36]} 11. Bb2 {[%emt 0:05:38]} dxc4 {[%emt 0:11:41]} 12. bxc4 {[%emt 0:00:36]} e5 {[%emt 0:08:33]} 13. Rad1 {[%emt 0:23:50]} Bg6 {[%emt 0:11:41]} 14. Qb3 {[%emt 0:01:57]} exd4 {[%emt 0:08:46]} 15. exd4 {[%emt 0:03:03]} Qc7 {[%emt 0:01:21]} 16. Nh4 {[%emt 0:08:28]} Nf8 {[%emt 0:06:37]} 17. Ba3 {[%emt 0:11:09]} Rad8 {[%emt 0:06:14]} 18. Bxd6 {[%emt 0:05:02]} Rxd6 {[%emt 0:03:18]} 19. Nxg6 {[%emt 0:04:03]} Nxg6 {[%emt 0:00:27]} 20. Rd2 {[%emt 0:01:39]} Ne4 {[%emt 0:03:30]} 21. Nxe4 {[%emt 0:00:49]} Rxe4 {[%emt 0:00:05]} 22. Rfd1 {[%emt 0:02:14]} Qe7 {[%emt 0:06:31]} 23. Bf3 {[%emt 0:04:41]} Rexd4 {[%emt 0:11:23]} 24. Rxd4 {[%emt 0:00:07]} Rxd4 {[%emt 0:00:11]} 25. Rxd4 {[%emt 0:00:03]} Qe1+ {[%emt 0:00:16]} 26. Kh2 {[%emt 0:00:09]} Qe5+ {[%emt 0:00:11]} 27. Kg1 {[%emt 0:02:50]} Qxd4 {[%emt 0:00:06]} 28. Qxb7 {[%emt 0:00:41]} Qa1+ {[%emt 0:00:14]} 29. Kh2 {[%emt 0:00:04]} Qxa2 {[%emt 0:02:55]} 30. Qxc6 {[%emt 0:02:30]} Nf8 {[%emt 0:04:33]} 31. c5 {[%emt 0:04:22]} a5 {[%emt 0:01:50]} 32. Qb7 {[%emt 0:04:02]} g6 {[%emt 0:00:59]} 33. c6 {[%emt 0:00:54]} Ne6 {[%emt 0:00:37]} 34. c7 {[%emt 0:00:53]} Nxc7 {[%emt 0:00:15]} 35. Qxc7 {[%emt 0:00:00]} a4 {[%emt 0:00:27]} 36. Qd8+ {[%emt 0:01:36]} Kg7 {[%emt 0:00:06]} 37. Qd4+ {[%emt 0:00:17]} Kg8 {[%emt 0:01:05]} 38. Bd5 {[%emt 0:01:01]} Qc2 {[%emt 0:00:28]} 39. f3 {[%emt 0:03:02]} Qc7+ {[%emt 0:00:23]} 40. Kg1 {[%emt 0:00:23]} Qc1+ {[%emt 0:00:33]} 41. Kf2 {[%emt 0:02:43]} a3 {[%emt 0:08:54]} 42. Qc4 {[%emt 0:03:31]} Qd2+ {[%emt 0:06:54]} 43. Kg1 {[%emt 0:00:23]} Qe3+ {[%emt 0:02:04]} 44. Kf1 {[%emt 0:01:34]} Qe7 {[%emt 0:01:56] normal} 45. Kf2 {[%emt 0:04:46] normal} Kg7 {[%emt 0:02:03] normal} 46. Qd4+ {[%emt 0:02:25] normal} Kg8 {[%emt 0:01:40] normal} 47. Ba2 {[%emt 0:02:03]} Qc7 {[%emt 0:01:14] normal} 48. Qc4 {[%emt 0:04:05]} Qe7 {[%emt 0:01:21] normal} 49. f4 {[%emt 0:00:55] normal} Qa7+ {[%emt 0:02:15] normal} 50. Ke2 {[%emt 0:01:22]} Qb7 {[%emt 0:01:27]} 51. Kd3 {[%emt 0:00:49] normal} Qa7 {[%emt 0:02:02] normal} 52. Qd5 {[%emt 0:03:43] normal} Qc7 {[%emt 0:03:05] normal} 53. g3 {[%emt 0:00:41]} Qe7 {[%emt 0:00:45] normal} 54. Kc3 {[%emt 0:02:13]} Qe3+ {[%emt 0:01:09] normal} 0-1

[Event "GER-ch Youth U16w 2019"]
[Site "Willingen"]
[Date "2019.06.13"]
[Round "7.8"]
[White "Wagner, Victoria"]
[Black "Meijerink, Inken"]
[Result "1/2-1/2"]
[ECO "B33"]
[WhiteElo "1808"]
[BlackElo "1681"]
[Annotator "NA"]
[PlyCount "99"]
[EventDate "2019.06.07"]
[EventType "swiss"]
[EventRounds "9"]
[EventCountry "GER"]
[SourceTitle "playchess.com"]
[Source "ChessBase"]
[SourceQuality "1"]
[TimeControl "40/5400+30:1800+30"]

1. e4 {[%emt 0:00:00]} c5 {[%emt 0:00:00]} 2. Nf3 {[%emt 0:00:00]} Nc6 {[%emt 0:00:00]} 3. d4 {[%emt 0:00:00]} cxd4 {[%emt 0:00:00]} 4. Nxd4 {[%emt 0:00:00]} Nf6 {[%emt 0:00:00]} 5. Nc3 {[%emt 0:00:00]} e5 {[%emt 0:00:00]} 6. Ndb5 {[%emt 0:00:10]} d6 {[%emt 0:00:01]} 7. Bg5 {[%emt 0:00:07]} a6 {[%emt 0:00:15]} 8. Na3 {[%emt 0:03:09]} b5 {[%emt 0:03:28]} 9. Nd5 {[%emt 0:00:27]} Be7 {[%emt 0:00:07]} 10. Bxf6 {[%emt 0:00:13]} Bxf6 {[%emt 0:00:04]} 11. c3 {[%emt 0:00:24]} Bg5 {[%emt 0:00:22]} 12. Nc2 {[%emt 0:00:40]} O-O {[%emt 0:00:14]} 13. a4 {[%emt 0:00:54]} bxa4 {[%emt 0:09:22]} 14. Rxa4 {[%emt 0:00:35]} Ne7 {[%emt 0:08:51]} 15. h4 {[%emt 0:13:51]} Bh6 {[%emt 0:00:44]} 16. Nce3 {[%emt 0:09:07]} Bxe3 {[%emt 0:03:41]} 17. Nxe3 {[%emt 0:00:21]} Be6 {[%emt 0:08:25]} 18. Bc4 {[%emt 0:14:29]} Bxc4 {[%emt 0:02:42]} 19. Nxc4 {[%emt 0:00:53]} d5 {[%emt 0:00:58]} 20. Nxe5 {[%emt 0:07:28]} Qc7 {[%emt 0:04:05]} 21. Nf3 {[%emt 0:02:20]} Rad8 {[%emt 0:02:40]} 22. e5 {[%emt 0:11:50]} a5 {[%emt 0:07:27]} 23. O-O {[%emt 0:01:03]} Nc6 {[%emt 0:00:30]} 24. Re1 {[%emt 0:06:38]} Rfe8 {[%emt 0:00:44]} 25. Qb1 {[%emt 0:07:50]} g6 {[%emt 0:07:41]} 26. h5 {[%emt 0:03:56]} Nxe5 {[%emt 0:00:10]} 27. Nxe5 {[%emt 0:00:43]} Rxe5 {[%emt 0:00:07]} 28. Rxe5 {[%emt 0:00:40]} Qxe5 {[%emt 0:00:06]} 29. hxg6 {[%emt 0:00:14]} hxg6 {[%emt 0:00:07]} 30. Rxa5 {[%emt 0:01:28]} Kg7 {[%emt 0:00:22]} 31. Qd3 {[%emt 0:04:12]} Qe1+ {[%emt 0:01:27]} 32. Qf1 {[%emt 0:00:20]} Qe5 {[%emt 0:00:47]} 33. Qd3 {[%emt 0:02:00]} Qe1+ {[%emt 0:00:21]} 34. Qf1 {[%emt 0:00:06]} Qe5 {[%emt 0:01:31]} 35. Qd1 {[%emt 0:02:51]} Rh8 {[%emt 0:11:11]} 36. Qd4 {[%emt 0:01:09]} Qxd4 {[%emt 0:00:12]} 37. cxd4 {[%emt 0:00:04]} Rb8 {[%emt 0:00:06]} 38. Rxd5 {[%emt 0:00:35]} Rxb2 {[%emt 0:00:06]} 39. Rd7 {[%emt 0:00:41]} Kf6 {[%emt 0:01:20]} 40. d5 {[%emt 0:00:58]} Re2 {[%emt 0:02:04]} 41. g4 {[%emt 0:34:46]} Rd2 {[%emt 0:34:26]} 42. Kg2 {[%emt 0:00:52]} Kg5 {[%emt 0:04:25]} 43. Rxf7 {[%emt 0:01:09]} Kxg4 {[%emt 0:01:27]} 44. Rd7 {[%emt 0:00:00]} Rd3 {[%emt 0:00:00]} 45. Rd8 {[%emt 0:00:00]} Kf5 {[%emt 0:00:00]} 46. Rd6 {[%emt 0:00:00]} g5 {[%emt 0:00:00]} 47. Rd8 {[%emt 0:00:00]} Ke5 {[%emt 0:00:00]} 48. Rg8 {[%emt 0:00:00]} Kf5 {[%emt 0:00:00]} 49. Rd8 {[%emt 0:00:00]} Ke5 {[%emt 0:00:00]} 50. d6 {normal} 1/2-1/2